[Event "Early-Titled-Tuesday-Blitz-September-05-2023"]
[Site "Chess.com"]
[Date "2023.09.05"]
[Round "3"]
[White "SashaKuzhilniy"]
[Black "Zkid"]
[Result "0-1"]
[WhiteElo "2617"]
[BlackElo "2857"]
[TimeControl "180+1"]
[EndTime "8:28:25 PDT"]
[Termination "Zkid won by resignation"]

1. e4 {[%clk 0:03:00.9]} 1... e6 {[%clk 0:02:55.5]} 2. d4 {[%clk 0:03:01]} 2...
d5 {[%clk 0:02:55.8]} 3. exd5 {[%clk 0:03:01.9]} 3... exd5 {[%clk 0:02:56.1]} 4.
Nf3 {[%clk 0:03:02.6]} 4... Nc6 {[%clk 0:02:55.7]} 5. Bd3 {[%clk 0:03:02.3]}
5... Bd6 {[%clk 0:02:55.5]} 6. O-O {[%clk 0:03:01.6]} 6... Bg4 {[%clk
0:02:55.6]} 7. Re1+ {[%clk 0:02:58.8]} 7... Nge7 {[%clk 0:02:55.7]} 8. c3 {[%clk
0:02:58.5]} 8... Qd7 {[%clk 0:02:55.2]} 9. Nbd2 {[%clk 0:02:58.8]} 9... O-O
{[%clk 0:02:50.5]} 10. Nf1 {[%clk 0:02:48.3]} 10... Rfe8 {[%clk 0:02:45.2]} 11.
Ng3 {[%clk 0:02:44.2]} 11... Ng6 {[%clk 0:02:41]} 12. Be3 {[%clk 0:02:21.6]}
12... Nh4 {[%clk 0:02:00]} 13. Be2 {[%clk 0:02:12]} 13... Bxf3 {[%clk
0:01:53.7]} 14. Bxf3 {[%clk 0:02:12.9]} 14... Nxf3+ {[%clk 0:01:47.7]} 15. Qxf3
{[%clk 0:02:13.8]} 15... Bxg3 {[%clk 0:01:46.9]} 16. hxg3 {[%clk 0:02:07.6]}
16... Re6 {[%clk 0:01:44.2]} 17. Bd2 {[%clk 0:02:03.4]} 17... Rae8 {[%clk
0:01:43.5]} 18. Rxe6 {[%clk 0:02:03.9]} 18... Rxe6 {[%clk 0:01:43.4]} 19. Re1
{[%clk 0:02:04.2]} 19... Nd8 {[%clk 0:01:37.1]} 20. Re5 {[%clk 0:01:49.9]} 20...
c6 {[%clk 0:01:34.7]} 21. Qe2 {[%clk 0:01:45.9]} 21... f6 {[%clk 0:01:32.1]} 22.
Rxe6 {[%clk 0:01:45.7]} 22... Nxe6 {[%clk 0:01:32.9]} 23. g4 {[%clk 0:01:44.3]}
23... Kf7 {[%clk 0:01:25.1]} 24. Qd3 {[%clk 0:01:41.7]} 24... h6 {[%clk
0:01:20.5]} 25. Qg3 {[%clk 0:01:35]} 25... Qc7 {[%clk 0:01:17.9]} 26. Qxc7+
{[%clk 0:01:15.4]} 26... Nxc7 {[%clk 0:01:18.8]} 27. f3 {[%clk 0:01:16]} 27...
Ke6 {[%clk 0:01:10.6]} 28. Kf2 {[%clk 0:01:15.2]} 28... g5 {[%clk 0:01:00.2]}
29. Ke3 {[%clk 0:01:09.9]} 29... Nb5 {[%clk 0:00:55.7]} 30. Kd3 {[%clk
0:01:08.2]} 30... Nd6 {[%clk 0:00:53.1]} 31. b3 {[%clk 0:01:06.4]} 31... f5
{[%clk 0:00:53]} 32. gxf5+ {[%clk 0:01:05.3]} 32... Nxf5 {[%clk 0:00:50.6]} 33.
g4 {[%clk 0:01:06]} 33... Nh4 {[%clk 0:00:36.7]} 34. f4 {[%clk 0:00:45.3]} 34...
Kf6 {[%clk 0:00:36.8]} 35. c4 {[%clk 0:00:44.7]} 35... Ng6 {[%clk 0:00:20]} 36.
fxg5+ {[%clk 0:00:30.5]} 36... hxg5 {[%clk 0:00:20.9]} 37. a4 {[%clk 0:00:30.5]}
37... Ne7 {[%clk 0:00:17.8]} 38. Ke3 {[%clk 0:00:15.9]} 38... Ng8 {[%clk
0:00:16.5]} 39. Kf3 {[%clk 0:00:16.3]} 39... Kg6 {[%clk 0:00:16.3]} 40. Be3
{[%clk 0:00:15.9]} 40... Nf6 {[%clk 0:00:16.1]} 41. Bc1 {[%clk 0:00:15.5]} 41...
Ne4 {[%clk 0:00:16.1]} 42. Be3 {[%clk 0:00:16]} 42... Kf6 {[%clk 0:00:16.5]} 43.
Ke2 {[%clk 0:00:15.6]} 43... Ke6 {[%clk 0:00:16.4]} 44. Kd3 {[%clk 0:00:15.9]}
44... b6 {[%clk 0:00:15.4]} 45. Ke2 {[%clk 0:00:14.7]} 45... a6 {[%clk
0:00:15.4]} 46. Kd3 {[%clk 0:00:14.9]} 46... Kd6 {[%clk 0:00:15.9]} 47. Ke2
{[%clk 0:00:14.5]} 47... Ke6 {[%clk 0:00:11.1]} 48. Kd3 {[%clk 0:00:14.7]} 48...
Kf6 {[%clk 0:00:11.3]} 49. Ke2 {[%clk 0:00:14.5]} 49... Kg6 {[%clk 0:00:11.1]}
50. Kd3 {[%clk 0:00:13.2]} 50... Nf6 {[%clk 0:00:10.3]} 51. c5 {[%clk
0:00:06.4]} 51... bxc5 {[%clk 0:00:07.4]} 52. dxc5 {[%clk 0:00:07.3]} 52... Nxg4
{[%clk 0:00:07.8]} 53. Bd4 {[%clk 0:00:08]} 53... Kf5 {[%clk 0:00:08]} 54. b4
{[%clk 0:00:04.4]} 54... Ne5+ {[%clk 0:00:08.2]} 55. Ke3 {[%clk 0:00:03]} 55...
g4 {[%clk 0:00:06.7]} 56. Kf2 {[%clk 0:00:02.3]} 56... Nd3+ {[%clk 0:00:06.1]}
57. Kg3 {[%clk 0:00:01.9]} 57... Nxb4 {[%clk 0:00:07]} 0-1

[Event "Early-Titled-Tuesday-Blitz-September-05-2023"]
[Site "Chess.com"]
[Date "2023.09.05"]
[Round "3"]
[White "psychokiller48"]
[Black "tptagain"]
[Result "0-1"]
[WhiteElo "2702"]
[BlackElo "2909"]
[TimeControl "180+1"]
[EndTime "8:28:29 PDT"]
[Termination "tptagain won by resignation"]

1. e4 {[%clk 0:03:00.9]} 1... c6 {[%clk 0:03:00.2]} 2. d4 {[%clk 0:03:00.7]}
2... d5 {[%clk 0:03:00.8]} 3. Nc3 {[%clk 0:03:01.6]} 3... dxe4 {[%clk
0:03:00.2]} 4. Nxe4 {[%clk 0:03:02.5]} 4... Bf5 {[%clk 0:03:00.5]} 5. Ng3 {[%clk
0:03:02.6]} 5... Bg6 {[%clk 0:03:00.6]} 6. Nf3 {[%clk 0:03:03.2]} 6... Nd7
{[%clk 0:03:00.9]} 7. Bd3 {[%clk 0:03:03.9]} 7... Bxd3 {[%clk 0:03:00.6]} 8.
Qxd3 {[%clk 0:03:04.8]} 8... e6 {[%clk 0:03:00.8]} 9. O-O {[%clk 0:03:05.5]}
9... Ngf6 {[%clk 0:03:00.1]} 10. Re1 {[%clk 0:03:05.9]} 10... Be7 {[%clk
0:02:58.9]} 11. c4 {[%clk 0:03:02.1]} 11... O-O {[%clk 0:02:58]} 12. Bf4 {[%clk
0:03:01.1]} 12... Re8 {[%clk 0:02:57.3]} 13. Rad1 {[%clk 0:03:00.5]} 13... a5
{[%clk 0:02:56.2]} 14. h4 {[%clk 0:02:52]} 14... a4 {[%clk 0:02:55.4]} 15. h5
{[%clk 0:02:51]} 15... h6 {[%clk 0:02:55.5]} 16. Qc2 {[%clk 0:02:46.6]} 16...
Qa5 {[%clk 0:02:54.9]} 17. Ne5 {[%clk 0:02:45.1]} 17... Bb4 {[%clk 0:02:00.2]}
18. Re3 {[%clk 0:02:18.1]} 18... Rad8 {[%clk 0:01:50.5]} 19. Nxf7 {[%clk
0:02:09.9]} 19... Kxf7 {[%clk 0:01:50.8]} 20. Qg6+ {[%clk 0:02:10.4]} 20... Kg8
{[%clk 0:01:51.2]} 21. Bxh6 {[%clk 0:02:10.3]} 21... Bf8 {[%clk 0:01:51.7]} 22.
Bxg7 {[%clk 0:01:42.5]} 22... Bxg7 {[%clk 0:01:50.6]} 23. h6 {[%clk 0:01:42.7]}
23... Re7 {[%clk 0:01:48.2]} 24. d5 {[%clk 0:01:34.8]} 24... Nf8 {[%clk
0:01:13.7]} 25. Qg5 {[%clk 0:01:34.6]} 25... N8h7 {[%clk 0:01:10.8]} 26. Qg6
{[%clk 0:01:34.6]} 26... cxd5 {[%clk 0:01:05.9]} 27. Nf5 {[%clk 0:01:31.1]}
27... Rdd7 {[%clk 0:00:43.4]} 28. Nxg7 {[%clk 0:01:18.8]} 28... Rxg7 {[%clk
0:00:40]} 29. hxg7 {[%clk 0:01:17.7]} 29... Rxg7 {[%clk 0:00:40.9]} 30. Qh6
{[%clk 0:01:15.4]} 30... Qb6 {[%clk 0:00:21.2]} 31. cxd5 {[%clk 0:01:11.7]}
31... exd5 {[%clk 0:00:22.1]} 32. Rf3 {[%clk 0:00:56.9]} 32... Qe6 {[%clk
0:00:20.8]} 33. Qf4 {[%clk 0:00:34.2]} 33... Rg6 {[%clk 0:00:17]} 34. Re3 {[%clk
0:00:30.3]} 34... Qf7 {[%clk 0:00:16.6]} 35. Rde1 {[%clk 0:00:28.2]} 35... Nf8
{[%clk 0:00:16.7]} 36. Re7 {[%clk 0:00:26.2]} 36... Rg4 {[%clk 0:00:14.7]} 37.
Qf5 {[%clk 0:00:17.4]} 37... Qg6 {[%clk 0:00:14.1]} 38. Qxg6+ {[%clk 0:00:17.5]}
38... Rxg6 {[%clk 0:00:15]} 39. Rxb7 {[%clk 0:00:17.8]} 39... N8d7 {[%clk
0:00:14.8]} 40. Rb4 {[%clk 0:00:17]} 40... Nc5 {[%clk 0:00:14.5]} 41. Re7 {[%clk
0:00:15.7]} 41... Rg7 {[%clk 0:00:14]} 42. Rb8+ {[%clk 0:00:14.7]} 42... Kh7
{[%clk 0:00:14.4]} 43. Rxg7+ {[%clk 0:00:14.6]} 43... Kxg7 {[%clk 0:00:15.3]}
44. f3 {[%clk 0:00:15.3]} 44... Nfd7 {[%clk 0:00:15.3]} 45. Ra8 {[%clk
0:00:14.7]} 45... d4 {[%clk 0:00:15.5]} 46. Kf2 {[%clk 0:00:15]} 46... Kf6
{[%clk 0:00:16.1]} 47. g4 {[%clk 0:00:14.4]} 47... Nd3+ {[%clk 0:00:16.1]} 48.
Kg3 {[%clk 0:00:14.2]} 48... Nxb2 {[%clk 0:00:17]} 49. Ra6+ {[%clk 0:00:13.3]}
49... Ke5 {[%clk 0:00:16.9]} 50. Ra5+ {[%clk 0:00:13.3]} 50... Ke6 {[%clk
0:00:17.3]} 51. f4 {[%clk 0:00:13.4]} 51... d3 {[%clk 0:00:17.7]} 52. Ra6+
{[%clk 0:00:11.5]} 52... Ke7 {[%clk 0:00:18.1]} 53. Ra5 {[%clk 0:00:10.3]} 53...
d2 {[%clk 0:00:18.6]} 54. Rd5 {[%clk 0:00:11]} 54... d1=Q {[%clk 0:00:19.5]} 55.
Rxd1 {[%clk 0:00:11.7]} 55... Nxd1 {[%clk 0:00:20.4]} 56. Kf3 {[%clk 0:00:12.4]}
56... Nc3 {[%clk 0:00:21.1]} 57. a3 {[%clk 0:00:11.9]} 57... Nb5 {[%clk
0:00:21.3]} 58. Ke4 {[%clk 0:00:12.6]} 58... Nxa3 {[%clk 0:00:22]} 59. Kd4
{[%clk 0:00:13.4]} 59... Nb5+ {[%clk 0:00:22.4]} 60. Kc4 {[%clk 0:00:14.1]}
60... Nc5 {[%clk 0:00:14.3]} 61. Kxb5 {[%clk 0:00:10.9]} 61... a3 {[%clk
0:00:15.2]} 62. Kxc5 {[%clk 0:00:11.8]} 62... a2 {[%clk 0:00:15.7]} 0-1

[Event "Early-Titled-Tuesday-Blitz-September-05-2023"]
[Site "Chess.com"]
[Date "2023.09.05"]
[Round "3"]
[White "rasmussvane"]
[Black "HSH1987"]
[Result "1-0"]
[WhiteElo "2969"]
[BlackElo "2746"]
[TimeControl "180+1"]
[EndTime "8:28:31 PDT"]
[Termination "rasmussvane won on time"]

1. Nf3 {[%clk 0:03:00.9]} 1... d6 {[%clk 0:03:00.9]} 2. d4 {[%clk 0:03:00.8]}
2... Nf6 {[%clk 0:03:01.6]} 3. Nc3 {[%clk 0:02:58.6]} 3... g6 {[%clk 0:03:02.5]}
4. e4 {[%clk 0:02:58.4]} 4... Bg7 {[%clk 0:03:03]} 5. Be3 {[%clk 0:02:55.5]}
5... c6 {[%clk 0:03:02.2]} 6. Qd2 {[%clk 0:02:54.5]} 6... b5 {[%clk 0:02:57.8]}
7. Bd3 {[%clk 0:02:52.3]} 7... Nbd7 {[%clk 0:02:55.5]} 8. a4 {[%clk 0:02:46.7]}
8... b4 {[%clk 0:02:54.2]} 9. Ne2 {[%clk 0:02:46.9]} 9... a5 {[%clk 0:02:53.1]}
10. O-O {[%clk 0:02:38.3]} 10... O-O {[%clk 0:02:52.5]} 11. h3 {[%clk
0:02:35.6]} 11... Ba6 {[%clk 0:02:50.6]} 12. Ng3 {[%clk 0:02:35.3]} 12... c5
{[%clk 0:02:46.2]} 13. Bxa6 {[%clk 0:02:28.9]} 13... Rxa6 {[%clk 0:02:45.5]} 14.
c3 {[%clk 0:02:02.4]} 14... bxc3 {[%clk 0:02:38.9]} 15. bxc3 {[%clk 0:02:03.3]}
15... cxd4 {[%clk 0:02:38.4]} 16. cxd4 {[%clk 0:02:02.7]} 16... Qa8 {[%clk
0:02:37]} 17. Qd3 {[%clk 0:02:00.1]} 17... Rb8 {[%clk 0:02:30.9]} 18. Rfc1
{[%clk 0:01:52.4]} 18... Rab6 {[%clk 0:02:28.4]} 19. Rc7 {[%clk 0:01:28.8]}
19... Rb3 {[%clk 0:02:24.2]} 20. Qd1 {[%clk 0:01:28.8]} 20... R3b7 {[%clk
0:02:08.7]} 21. Rac1 {[%clk 0:01:25.3]} 21... Ne8 {[%clk 0:02:07.9]} 22. R7c3
{[%clk 0:01:18.3]} 22... Nef6 {[%clk 0:02:05.7]} 23. Qd3 {[%clk 0:01:14.8]}
23... Nb6 {[%clk 0:01:54.6]} 24. Qc2 {[%clk 0:01:11.9]} 24... h6 {[%clk
0:01:43.8]} 25. Rc6 {[%clk 0:00:55.9]} 25... Kh7 {[%clk 0:01:40.9]} 26. d5
{[%clk 0:00:54.8]} 26... Nbd7 {[%clk 0:01:36.6]} 27. Bd4 {[%clk 0:00:47.9]}
27... Rb4 {[%clk 0:01:35.5]} 28. Bc3 {[%clk 0:00:46.5]} 28... R4b7 {[%clk
0:01:27.2]} 29. h4 {[%clk 0:00:46.1]} 29... Rb6 {[%clk 0:01:05.5]} 30. Bd4
{[%clk 0:00:42.7]} 30... Rb4 {[%clk 0:01:03.3]} 31. h5 {[%clk 0:00:42.9]} 31...
Qb7 {[%clk 0:00:38.3]} 32. Rc7 {[%clk 0:00:37.7]} 32... Qa6 {[%clk 0:00:37.4]}
33. hxg6+ {[%clk 0:00:38.1]} 33... fxg6 {[%clk 0:00:37.2]} 34. e5 {[%clk
0:00:29.3]} 34... dxe5 {[%clk 0:00:36.8]} 35. Bxe5 {[%clk 0:00:30.2]} 35... R8b7
{[%clk 0:00:33.3]} 36. Rc6 {[%clk 0:00:28.9]} 36... R4b6 {[%clk 0:00:27.1]} 37.
Bd4 {[%clk 0:00:28]} 37... Rxc6 {[%clk 0:00:21.1]} 38. dxc6 {[%clk 0:00:28.9]}
38... Rc7 {[%clk 0:00:21.4]} 39. Ne5 {[%clk 0:00:20.7]} 39... Nxe5 {[%clk
0:00:20.5]} 40. Bxe5 {[%clk 0:00:21.6]} 40... Rc8 {[%clk 0:00:20.9]} 41. Qc5
{[%clk 0:00:19.3]} 41... Nd7 {[%clk 0:00:15.8]} 42. cxd7 {[%clk 0:00:11.7]}
42... Rxc5 {[%clk 0:00:16.7]} 43. Rxc5 {[%clk 0:00:11.9]} 43... Qa7 {[%clk
0:00:07.8]} 44. Rd5 {[%clk 0:00:09.8]} 44... e6 {[%clk 0:00:07.9]} 45. d8=Q
{[%clk 0:00:08.2]} 45... exd5 {[%clk 0:00:07.6]} 46. Bxg7 {[%clk 0:00:08.7]}
46... Qxg7 {[%clk 0:00:07.3]} 47. Qxd5 {[%clk 0:00:08.8]} 47... h5 {[%clk
0:00:07.5]} 48. Qxa5 {[%clk 0:00:07.9]} 48... Qa1+ {[%clk 0:00:06.6]} 49. Nf1
{[%clk 0:00:08.2]} 49... Qd4 {[%clk 0:00:07.5]} 50. Qb5 {[%clk 0:00:07.8]} 50...
h4 {[%clk 0:00:06.8]} 51. a5 {[%clk 0:00:07.8]} 51... h3 {[%clk 0:00:07.2]} 52.
gxh3 {[%clk 0:00:07.5]} 52... Qc3 {[%clk 0:00:06.8]} 53. Qb6 {[%clk 0:00:07.1]}
53... Qxh3 {[%clk 0:00:06.1]} 54. Qc7+ {[%clk 0:00:06]} 54... Kg8 {[%clk
0:00:05.2]} 55. a6 {[%clk 0:00:05.2]} 55... Qg4+ {[%clk 0:00:04.9]} 56. Qg3
{[%clk 0:00:05.7]} 56... Qa4 {[%clk 0:00:03.9]} 57. Qb8+ {[%clk 0:00:05.8]}
57... Kh7 {[%clk 0:00:03.7]} 58. a7 {[%clk 0:00:06.7]} 58... Qg4+ {[%clk
0:00:02.9]} 59. Qg3 {[%clk 0:00:06.2]} 59... Qa4 {[%clk 0:00:02.6]} 60. Qh3+
{[%clk 0:00:06.6]} 60... Kg7 {[%clk 0:00:01.5]} 61. Qc3+ {[%clk 0:00:06.3]} 1-0

[Event "Early-Titled-Tuesday-Blitz-September-05-2023"]
[Site "Chess.com"]
[Date "2023.09.05"]
[Round "3"]
[White "AleksanderHnydiuk"]
[Black "sergoy"]
[Result "1-0"]
[WhiteElo "2524"]
[BlackElo "2891"]
[TimeControl "180+1"]
[EndTime "8:28:33 PDT"]
[Termination "AleksanderHnydiuk won by resignation"]

1. d4 {[%clk 0:03:00.9]} 1... Nf6 {[%clk 0:03:00]} 2. c4 {[%clk 0:03:01]} 2...
e6 {[%clk 0:03:00.7]} 3. Nf3 {[%clk 0:03:00.4]} 3... d5 {[%clk 0:03:00.3]} 4.
Nc3 {[%clk 0:03:00.4]} 4... c6 {[%clk 0:03:00.6]} 5. Bg5 {[%clk 0:02:59]} 5...
h6 {[%clk 0:03:00.4]} 6. Bh4 {[%clk 0:02:57.2]} 6... dxc4 {[%clk 0:03:00.7]} 7.
e4 {[%clk 0:02:56.7]} 7... g5 {[%clk 0:03:01.4]} 8. Bg3 {[%clk 0:02:56.4]} 8...
b5 {[%clk 0:03:02.2]} 9. Be2 {[%clk 0:02:52.7]} 9... Bb7 {[%clk 0:03:01.6]} 10.
O-O {[%clk 0:02:49]} 10... Nbd7 {[%clk 0:03:01.7]} 11. Qc2 {[%clk 0:02:43.6]}
11... Nh5 {[%clk 0:02:58.1]} 12. Rad1 {[%clk 0:02:39.8]} 12... Nxg3 {[%clk
0:02:58.1]} 13. fxg3 {[%clk 0:02:30.5]} 13... Qb6 {[%clk 0:02:57.1]} 14. Kh1
{[%clk 0:02:29.7]} 14... O-O-O {[%clk 0:02:55.2]} 15. a4 {[%clk 0:02:21.3]}
15... a6 {[%clk 0:02:51]} 16. b3 {[%clk 0:02:11.2]} 16... cxb3 {[%clk
0:02:39.3]} 17. Qxb3 {[%clk 0:02:10.9]} 17... b4 {[%clk 0:02:39.7]} 18. a5
{[%clk 0:02:07.1]} 18... Qc7 {[%clk 0:02:35.9]} 19. Na4 {[%clk 0:02:05.1]} 19...
Kb8 {[%clk 0:02:36]} 20. Nd2 {[%clk 0:01:51.7]} 20... c5 {[%clk 0:02:34.8]} 21.
Rxf7 {[%clk 0:01:47.5]} 21... cxd4 {[%clk 0:02:14.5]} 22. Nb6 {[%clk 0:01:31.6]}
22... Nc5 {[%clk 0:01:11.5]} 23. Rxc7 {[%clk 0:01:26.5]} 23... Nxb3 {[%clk
0:01:11.6]} 24. Rxb7+ {[%clk 0:01:12.2]} 24... Kxb7 {[%clk 0:01:12.5]} 25. Nxb3
{[%clk 0:01:12.4]} 25... e5 {[%clk 0:01:13.2]} 26. Bc4 {[%clk 0:00:59.6]} 26...
Bd6 {[%clk 0:01:11.2]} 27. Bd5+ {[%clk 0:00:56]} 27... Ka7 {[%clk 0:01:10.5]}
28. Rc1 {[%clk 0:00:44.8]} 28... Rhf8 {[%clk 0:01:06.8]} 29. Kg1 {[%clk
0:00:45]} 29... g4 {[%clk 0:00:47.6]} 30. Rc6 {[%clk 0:00:43.2]} 30... d3 {[%clk
0:00:42.7]} 31. Rc1 {[%clk 0:00:28.2]} 31... Rf6 {[%clk 0:00:34.5]} 32. Rd1
{[%clk 0:00:24.4]} 32... Bc7 {[%clk 0:00:28.9]} 33. Nc4 {[%clk 0:00:16.7]} 33...
Rdf8 {[%clk 0:00:28.6]} 34. h3 {[%clk 0:00:15.4]} 34... gxh3 {[%clk 0:00:20.9]}
35. gxh3 {[%clk 0:00:16.3]} 35... Rf2 {[%clk 0:00:20.2]} 36. Nc5 {[%clk
0:00:12.3]} 36... Rc2 {[%clk 0:00:17.4]} 37. Nxd3 {[%clk 0:00:11.6]} 37... Rf3
{[%clk 0:00:17.6]} 38. Nxb4 {[%clk 0:00:08.7]} 38... Rxg3+ {[%clk 0:00:17.8]}
39. Kf1 {[%clk 0:00:09.1]} 39... Rf3+ {[%clk 0:00:18.2]} 40. Ke1 {[%clk
0:00:06.8]} 40... Rh2 {[%clk 0:00:18.2]} 41. Nc6+ {[%clk 0:00:06.3]} 41... Kb7
{[%clk 0:00:17]} 42. N6xe5+ {[%clk 0:00:06.3]} 42... Kc8 {[%clk 0:00:17.3]} 43.
Nxf3 {[%clk 0:00:07]} 43... Bg3+ {[%clk 0:00:17.6]} 44. Kf1 {[%clk 0:00:06.8]}
44... Rf2+ {[%clk 0:00:18.4]} 45. Kg1 {[%clk 0:00:07.2]} 45... Rxf3 {[%clk
0:00:19.3]} 46. e5 {[%clk 0:00:06.1]} 46... Rc3 {[%clk 0:00:19.6]} 47. e6 {[%clk
0:00:05.7]} 47... Bh4 {[%clk 0:00:20.1]} 48. Kg2 {[%clk 0:00:04.3]} 48... Kc7
{[%clk 0:00:19.7]} 49. Rf1 {[%clk 0:00:03.8]} 49... Rd3 {[%clk 0:00:17.8]} 50.
Rf7+ {[%clk 0:00:03.2]} 50... Kb8 {[%clk 0:00:16.5]} 51. Rd7 {[%clk 0:00:02.8]}
51... Rg3+ {[%clk 0:00:13.3]} 52. Kf1 {[%clk 0:00:02.4]} 52... Rd3 {[%clk
0:00:13.2]} 53. Nb6 {[%clk 0:00:02.4]} 53... Rxd5 {[%clk 0:00:11.9]} 54. Rxd5
{[%clk 0:00:01.9]} 54... Kc7 {[%clk 0:00:12.3]} 55. Rd7+ {[%clk 0:00:02.3]}
55... Kc6 {[%clk 0:00:12.8]} 56. e7 {[%clk 0:00:02.8]} 56... Bxe7 {[%clk
0:00:12.8]} 57. Rxe7 {[%clk 0:00:03.7]} 57... Kb5 {[%clk 0:00:13.6]} 58. Rh7
{[%clk 0:00:04.1]} 58... Kxa5 {[%clk 0:00:14.1]} 59. Rxh6 {[%clk 0:00:05]} 59...
Kb5 {[%clk 0:00:14.7]} 60. Rg6 {[%clk 0:00:05.7]} 60... a5 {[%clk 0:00:15.6]}
61. h4 {[%clk 0:00:06.4]} 61... a4 {[%clk 0:00:16.1]} 62. h5 {[%clk 0:00:07.3]}
62... a3 {[%clk 0:00:17]} 63. Nd5 {[%clk 0:00:06.6]} 63... Kc4 {[%clk
0:00:16.9]} 64. Nb6+ {[%clk 0:00:06.5]} 64... Kb5 {[%clk 0:00:17.1]} 65. Rg2
{[%clk 0:00:07]} 65... Kxb6 {[%clk 0:00:17.3]} 66. Ra2 {[%clk 0:00:07.9]} 66...
Kc5 {[%clk 0:00:17.9]} 67. Rxa3 {[%clk 0:00:08.7]} 67... Kb4 {[%clk 0:00:18.8]}
68. Rg3 {[%clk 0:00:08.9]} 68... Kc4 {[%clk 0:00:19.7]} 69. Kg2 {[%clk
0:00:09.2]} 69... Kd4 {[%clk 0:00:20.6]} 70. h6 {[%clk 0:00:09.6]} 70... Ke4
{[%clk 0:00:21.5]} 71. h7 {[%clk 0:00:10.2]} 71... Kf4 {[%clk 0:00:22.4]} 1-0

[Event "Early-Titled-Tuesday-Blitz-September-05-2023"]
[Site "Chess.com"]
[Date "2023.09.05"]
[Round "3"]
[White "FuenfgegenWilly"]
[Black "ykam78"]
[Result "1/2-1/2"]
[WhiteElo "2303"]
[BlackElo "2513"]
[TimeControl "180+1"]
[EndTime "8:28:37 PDT"]
[Termination "Game drawn - insufficient material"]

1. e4 {[%clk 0:00:47.3]} 1... e5 {[%clk 0:02:59.1]} 2. Nc3 {[%clk 0:00:47.3]}
2... Nc6 {[%clk 0:02:59.4]} 3. Nf3 {[%clk 0:00:46.6]} 3... Nf6 {[%clk
0:02:59.7]} 4. d4 {[%clk 0:00:46.6]} 4... exd4 {[%clk 0:03:00.6]} 5. Nxd4 {[%clk
0:00:47.4]} 5... Bb4 {[%clk 0:03:00.3]} 6. Nxc6 {[%clk 0:00:47.3]} 6... bxc6
{[%clk 0:03:01.2]} 7. Bd3 {[%clk 0:00:47.7]} 7... d5 {[%clk 0:03:01.9]} 8. exd5
{[%clk 0:00:48.2]} 8... O-O {[%clk 0:03:01.9]} 9. O-O {[%clk 0:00:48.3]} 9...
Bg4 {[%clk 0:03:02.5]} 10. f3 {[%clk 0:00:42.4]} 10... Bh5 {[%clk 0:03:03]} 11.
dxc6 {[%clk 0:00:41.7]} 11... Qd4+ {[%clk 0:03:02]} 12. Kh1 {[%clk 0:00:42.2]}
12... Bxc3 {[%clk 0:03:02.9]} 13. bxc3 {[%clk 0:00:42.7]} 13... Qxc3 {[%clk
0:03:02.9]} 14. Bg5 {[%clk 0:00:40.1]} 14... Qxc6 {[%clk 0:02:58.7]} 15. Bxf6
{[%clk 0:00:38.5]} 15... Qxf6 {[%clk 0:02:59.6]} 16. Rb1 {[%clk 0:00:37.1]}
16... Rab8 {[%clk 0:02:52.1]} 17. Be4 {[%clk 0:00:36.2]} 17... Bg6 {[%clk
0:02:49.6]} 18. Qd3 {[%clk 0:00:33.9]} 18... Rb6 {[%clk 0:02:47.8]} 19. Rb3
{[%clk 0:00:33.2]} 19... Rd8 {[%clk 0:02:44.2]} 20. Qe2 {[%clk 0:00:30.5]} 20...
Re8 {[%clk 0:02:34.6]} 21. Re3 {[%clk 0:00:24.5]} 21... Qe6 {[%clk 0:02:27.5]}
22. Re1 {[%clk 0:00:24]} 22... Qxa2 {[%clk 0:02:08.3]} 23. Bxg6 {[%clk
0:00:22.9]} 23... Rxe3 {[%clk 0:02:09]} 24. Qxe3 {[%clk 0:00:22.7]} 24... hxg6
{[%clk 0:02:08.7]} 25. Qe8+ {[%clk 0:00:21]} 25... Kh7 {[%clk 0:02:09.3]} 26. h3
{[%clk 0:00:20.6]} 26... Re6 {[%clk 0:01:59]} 27. Rxe6 {[%clk 0:00:18.8]} 27...
Qxe6 {[%clk 0:01:59.9]} 28. Qa4 {[%clk 0:00:17.3]} 28... Qe1+ {[%clk 0:01:44.8]}
29. Kh2 {[%clk 0:00:17.6]} 29... Qe5+ {[%clk 0:01:45.3]} 30. Kg1 {[%clk
0:00:17.2]} 30... Qc5+ {[%clk 0:01:40.7]} 31. Kh1 {[%clk 0:00:16.8]} 31... g5
{[%clk 0:01:38.2]} 32. h4 {[%clk 0:00:16.1]} 32... g6 {[%clk 0:01:27.2]} 33. Qe8
{[%clk 0:00:11.8]} 33... Kg7 {[%clk 0:01:23.9]} 34. hxg5 {[%clk 0:00:09.4]}
34... Qxg5 {[%clk 0:01:24.8]} 35. Qa4 {[%clk 0:00:09.3]} 35... a5 {[%clk
0:01:19.1]} 36. Qa1+ {[%clk 0:00:08.1]} 36... Kh7 {[%clk 0:01:15.6]} 37. Qa4
{[%clk 0:00:06.4]} 37... Qh4+ {[%clk 0:01:08.8]} 38. Kg1 {[%clk 0:00:06.7]}
38... Qe1+ {[%clk 0:01:09.2]} 39. Kh2 {[%clk 0:00:06.9]} 39... Qb4 {[%clk
0:01:09.6]} 40. Qe8 {[%clk 0:00:06.9]} 40... Qd6+ {[%clk 0:01:05]} 41. Kh1
{[%clk 0:00:06.8]} 41... Kg7 {[%clk 0:01:03.2]} 42. Qa4 {[%clk 0:00:05.9]} 42...
Qe5 {[%clk 0:01:00.3]} 43. Qc6 {[%clk 0:00:05.3]} 43... Qd6 {[%clk 0:00:45.8]}
44. Qc3+ {[%clk 0:00:05.1]} 44... Kh7 {[%clk 0:00:42.6]} 45. Qxa5 {[%clk
0:00:06]} 45... Qd1+ {[%clk 0:00:42.4]} 46. Kh2 {[%clk 0:00:06.3]} 46... Qxc2
{[%clk 0:00:43.1]} 47. Qe5 {[%clk 0:00:06.4]} 47... Qc4 {[%clk 0:00:38.5]} 48.
Qf6 {[%clk 0:00:04.4]} 48... Qe6 {[%clk 0:00:32.6]} 49. Qh4+ {[%clk 0:00:04.3]}
49... Kg7 {[%clk 0:00:33.3]} 50. Qd4+ {[%clk 0:00:04.4]} 50... Qf6 {[%clk
0:00:33.9]} 51. Qc4 {[%clk 0:00:03.2]} 51... Qe5+ {[%clk 0:00:32.8]} 52. f4
{[%clk 0:00:03.6]} 52... Qd6 {[%clk 0:00:32.3]} 53. Qc3+ {[%clk 0:00:04]} 53...
Kg8 {[%clk 0:00:30.4]} 54. g3 {[%clk 0:00:04]} 54... c5 {[%clk 0:00:30.4]} 55.
Kh3 {[%clk 0:00:04.5]} 55... Qd7+ {[%clk 0:00:29.1]} 56. Kh4 {[%clk 0:00:04.5]}
56... Qd4 {[%clk 0:00:28.9]} 57. Qa5 {[%clk 0:00:03]} 57... c4 {[%clk
0:00:28.1]} 58. Qa8+ {[%clk 0:00:02.6]} 58... Kg7 {[%clk 0:00:27.8]} 59. Qc8
{[%clk 0:00:02.6]} 59... Qf6+ {[%clk 0:00:25.5]} 60. Kg4 {[%clk 0:00:02.5]}
60... Qe6+ {[%clk 0:00:26.1]} 61. Qxe6 {[%clk 0:00:02.5]} 61... fxe6 {[%clk
0:00:27]} 62. Kf3 {[%clk 0:00:03.2]} 62... Kf6 {[%clk 0:00:26.9]} 63. g4 {[%clk
0:00:03.2]} 63... Ke7 {[%clk 0:00:27.2]} 64. Ke4 {[%clk 0:00:03.6]} 64... Kd6
{[%clk 0:00:26.4]} 65. Kd4 {[%clk 0:00:04.1]} 65... c3 {[%clk 0:00:25.9]} 66.
Kxc3 {[%clk 0:00:04.6]} 66... Kd5 {[%clk 0:00:26.8]} 67. Kd3 {[%clk 0:00:05.2]}
67... e5 {[%clk 0:00:21.8]} 68. f5 {[%clk 0:00:05]} 68... gxf5 {[%clk
0:00:13.1]} 69. gxf5 {[%clk 0:00:05.9]} 69... e4+ {[%clk 0:00:13.7]} 70. Ke3
{[%clk 0:00:06.4]} 70... Ke5 {[%clk 0:00:14.4]} 71. f6 {[%clk 0:00:07]} 71...
Kxf6 {[%clk 0:00:15]} 72. Kxe4 {[%clk 0:00:07.7]} 1/2-1/2